bitfinex-derivatives/quotes_SOLF0:USTF0_20250830
["timestamp","ask_amount","ask_price","bid_price","bid_amount"]
[1756576637881,3.12967035,200.77,200.67,12.12027986]
[1756576638082,7.44,200.76,200.67,7.93]
[1756576643184,7.44,200.76,200.67,12.12027986]
[1756576644587,7.44,200.76,200.68,7.93]
[1756576645083,7.44,200.76,200.68,12.12027986]
[1756576645782,7.44,200.76,200.68,7.93]
[1756576646689,7.44,200.76,200.68,12.11884948]
[1756576647087,7.44,200.76,200.68,7.93]
[1756576650288,7.44,200.76,200.69,7.93]
[1756576660205,7.44,200.76,200.71,7.47]
[1756576661302,7.44,200.76,200.7,4.18884948]
[1756576661707,7.44,200.76,200.71,7.47]
[1756576662202,7.44,200.76,200.7,4.18884948]
[1756576662406,7.44,200.76,200.71,7.47]
[1756576662605,7.44,200.76,200.7,4.18884948]
[1756576662904,7.44,200.76,200.71,7.47]
[1756576663104,7.44,200.76,200.7,4.18884948]
[1756576663306,7.49,200.79,200.71,7.47]
[1756576664401,7.49,200.79,200.71,10.59967035]
[1756576664606,7.49,200.79,200.72,7.47]
[1756576664809,7.49,200.79,200.75,7.47]
[1756576665209,7.49,200.79,200.74,3.12967035]
[1756576665508,7.49,200.79,200.75,7.47]
[1756576665711,7.49,200.79,200.74,3.12967035]
[1756576666313,7.49,200.79,200.75,7.47]
[1756576666609,7.49,200.79,200.74,3.12967035]
[1756576667211,7.49,200.79,200.75,7.47]
[1756576667410,7.49,200.79,200.74,3.12967035]
[1756576667911,7.49,200.79,200.75,7.47]
[1756576668108,7.49,200.79,200.74,3.12967035]
[1756576668307,7.49,200.83,200.75,7.47]
[1756576679923,7.49,200.83,200.75,4.18884948]
[1756576680118,7.49,200.83,200.76,7.47]
[1756576680319,7.49,200.83,200.77,7.47]
[1756576682714,7.49,200.83,200.78,7.47]
[1756576683423,7.49,200.83,200.8,9.46952769]
[1756576684129,7.49,200.83,200.76,4.18884948]
[1756576684330,1.99952769,200.84,200.78,1.99952769]
[1756576684531,7.49,200.87,200.81,7.47]
[1756576684733,7.49,200.87,200.82,1.99952769]
[1756576685323,7.49,200.88,200.84,1.99952769]
[1756576685529,7.49,200.88,200.85,7.47]
[1756576686122,1.99952769,200.9,200.85,7.47]
[1756576686330,7.49,200.87,200.82,1.99952769]
[1756576686526,1.99952769,200.88,200.82,1.99952769]
[1756576686726,1.99952769,200.86,200.81,7.47]
[1756576686932,7.49,200.85,200.81,7.47]
[1756576687126,1.99952769,200.86,200.81,7.47]
[1756576687323,7.98,200.85,200.78,4.18884948]
[1756576687525,7.98,200.85,200.79,1.99952769]
[1756576687723,7.98,200.85,200.79,9.45952769]
[1756576689336,7.98,200.85,200.79,7.46]
[1756576691331,3.12414805,200.86,200.76,11.64884948]
[1756576691634,7.98,200.85,200.76,7.46]
[1756576692535,7.98,200.85,200.78,3.12414805]
[1756576692738,3.12414805,200.9,200.79,7.46]
[1756576692937,7.98,200.89,200.79,7.46]
[1756576693634,7.98,200.89,200.81,3.12414805]
[1756576693835,7.98,200.89,200.82,7.46]
[1756576697137,7.98,200.89,200.79,7.46]
[1756576697637,3.12414805,200.87,200.79,7.46]
[1756576697836,7.98,200.86,200.79,7.46]
[1756576700944,7.98,200.86,200.8,7.46]
[1756576713958,7.98,200.86,200.78,4.18337462]
[1756576714154,7.98,200.86,200.77,7.46]
[1756576715162,3.12414805,200.87,200.77,11.64337462]
[1756576715750,7.98,200.86,200.77,11.64337462]
[1756576716058,3.12414805,200.87,200.77,11.64337462]
[1756576716256,7.98,200.86,200.77,11.64337462]
[1756576716850,7.98,200.86,200.78,7.46]
[1756576721259,1.99991181,200.84,200.78,9.45991181]
[1756576721461,7.98,200.86,200.78,1.99991181]
[1756576721759,9.97991181,200.86,200.81,7.44]
[1756576722164,9.97991181,200.86,200.8,1.99991181]
[1756576722460,1.99991181,200.86,200.81,7.44]
[1756576722659,7.44,200.89,200.83,7.44]
[1756576722858,7.44,200.89,200.85,7.44]
[1756576723260,48.29991181,200.92,200.87,7.44]
[1756576723462,7.44,200.91,200.86,1.99991181]
[1756576723663,7.44,200.91,200.89,7.44]
[1756576723960,7.44,200.93,200.89,7.44]
[1756576724158,334.62,200.95,200.88,1.99991181]
[1756576724364,342.06,200.95,200.9,1.99991181]
[1756576724659,342.06,200.95,200.91,7.44]
[1756576724856,7.44,200.95,200.91,7.44]
[1756576725369,7.44,200.95,200.89,7.44]
[1756576725865,7.44,200.98,200.89,7.44]
[1756576726260,7.44,200.98,200.92,3.12100011]
[1756576726460,0.86618877,201.03,200.93,7.44]
[1756576726659,7.44,201.02,200.93,7.44]
[1756576730167,7.44,201.0,200.89,7.44]
[1756576730364,3.12100011,200.98,200.89,7.44]
[1756576730568,7.44,200.97,200.89,7.44]
[1756576742177,7.44,200.97,200.91,7.44]
[1756576744388,7.44,201.0,200.91,7.44]
[1756576745289,3.12100011,200.98,200.91,7.44]
[1756576745488,3.12100011,200.95,200.87,7.44]
[1756576745687,7.44,200.94,200.87,7.44]
[1756576748889,7.44,200.94,200.88,7.83]
[1756576758792,7.57,200.97,200.88,7.83]
[1756576759496,3.12100011,200.96,200.88,7.83]
[1756576759702,7.57,200.95,200.88,7.83]
[1756576774509,7.57,200.95,200.88,12.00289168]
[1756576775310,7.57,200.95,200.88,7.83]
[1756576776407,7.57,200.95,200.87,4.17289168]
[1756576776613,7.57,200.92,200.86,4.17289168]
[1756576777306,7.57,200.92,200.85,12.00289168]
[1756576778009,8.38373695,201.01,200.85,12.00289168]
[1756576778010,7.98,201.02,200.9,4.17289168]
[1756576778208,7.98,201.02,200.96,10.87100011]
[1756576778408,7.98,201.02,200.98,7.75]
[1756576778609,7.98,201.02,200.99,4.84557039]
[1756576778812,7.98,201.02,201.0,4.84557039]
[1756576779114,7.98,201.02,201.01,9.5198108]
[1756576783315,0.86607021,201.06,201.02,7.75]
[1756576783512,16.36373695,201.13,201.04,7.75]
[1756576783513,7.98,201.13,201.04,7.75]
[1756576783711,3.12100011,201.11,201.05,9.5198108]
[1756576783916,3.12100011,201.08,201.06,9.5198108]
[1756576784216,3.12100011,201.08,201.0,7.75]
[1756576784217,7.98,201.07,201.0,7.75]
[1756576784417,7.98,201.07,201.01,9.26788491]
[1756576784621,7.98,201.07,201.02,9.26788491]
[1756576784810,3.12100011,201.08,201.0,7.75]
[1756576784811,3.12100011,201.08,201.03,9.26788491]
[1756576785006,7.98,201.07,201.04,9.26788491]
[1756576785210,7.98,201.07,201.05,9.26788491]
[1756576785412,7.98,201.07,201.06,4.68566197]
[1756576786411,8.48,201.07,201.06,4.68566197]
[1756576786616,8.48,201.07,200.97,7.75]
[1756576786807,11.10100011,201.04,200.98,4.57896443]
[1756576787012,3.12100011,201.04,200.99,4.57896443]
[1756576787211,3.12100011,201.04,201.0,4.57896443]
[1756576787412,3.12100011,201.01,200.93,7.75]
[1756576787718,11.10100011,201.01,200.94,4.57914625]
[1756576787914,11.10100011,201.01,200.95,4.57914625]
[1756576788109,7.98,201.0,200.96,4.57925162]
[1756576788416,3.12100011,201.01,200.93,7.75]
[1756576788417,3.12100011,201.01,200.97,4.57925162]
[1756576788619,7.98,201.0,200.98,4.57925162]
[1756576788818,7.98,201.0,200.93,7.75]
[1756576789121,7.98,201.0,200.94,4.57913919]
[1756576789417,7.98,201.0,200.96,7.75]
[1756576789621,43.66,201.03,200.97,12.32913919]
[1756576789819,7.98,201.02,200.98,4.57913919]
[1756576790015,7.98,201.02,200.99,4.57913919]
[1756576790317,7.98,201.02,200.93,7.75]
[1756576790518,7.98,201.02,200.95,7.75]
[1756576790720,7.98,201.02,200.96,4.57849238]
[1756576790917,3.12100011,201.01,200.97,4.57849238]
[1756576791116,7.98,201.0,200.98,4.57849238]
[1756576791318,7.98,201.0,200.95,7.75]
[1756576791513,7.98,201.0,200.96,4.57869641]
[1756576791714,7.98,201.0,200.97,4.57869641]
[1756576791915,7.98,201.0,200.91,7.75]
[1756576792122,7.98,201.0,200.92,4.57893144]
[1756576792418,7.98,201.0,200.93,4.57893144]
[1756576792622,7.98,201.0,200.94,4.57893144]
[1756576792822,11.10100011,201.01,200.95,4.57893144]
[1756576793121,7.98,201.0,200.96,12.32893144]
[1756576793321,7.98,201.0,200.97,4.57893144]
[1756576793517,7.98,201.0,200.96,7.75]
[1756576793718,7.98,201.0,200.97,4.57924526]
[1756576793917,7.98,201.0,200.96,7.75]
[1756576794119,7.98,201.0,200.97,4.57924526]
[1756576794316,7.98,201.0,200.89,7.3017745]
[1756576794317,7.98,201.0,200.95,7.75]
[1756576794512,7.98,201.0,200.9,7.75]
[1756576800425,7.98,200.97,200.9,7.75]
[1756576800919,7.98,201.03,200.91,3.12100011]
[1756576801126,7.98,201.03,200.92,7.75]
[1756576801619,3.12100011,201.05,200.94,7.75]
[1756576802127,7.98,201.04,200.94,7.75]
[1756576802422,3.12100011,201.05,200.94,7.75]
[1756576802617,11.10100011,201.07,200.97,7.75]
[1756576802924,7.98,201.07,200.97,7.75]
[1756576805420,3.12100011,201.02,200.97,7.75]
[1756576805826,7.98,201.01,200.93,7.75]
[1756576806417,7.98,200.98,200.89,11.92657755]
[1756576806726,40.2,201.02,200.89,7.75]
[1756576806727,7.98,200.95,200.89,7.75]
[1756576813439,7.75,200.89,200.85,7.49]
[1756576813935,7.75,200.89,200.84,7.49]
[1756576814643,7.75,200.89,200.83,11.66657755]
[1756576814845,7.75,200.89,200.83,7.49]
[1756576817742,3.12100011,200.91,200.83,7.49]
[1756576819145,7.75,200.93,200.83,7.49]
[1756576819348,7.75,201.03,200.92,3.12100011]
[1756576819543,5.59051388,201.04,200.9,7.49]
[1756576819544,3.12100011,200.97,200.93,7.49]
[1756576819751,3.12100011,200.97,200.87,4.17657755]
[1756576819939,7.75,200.98,200.89,7.49]
[1756576820145,3.12100011,201.0,200.9,4.17657755]
[1756576820341,7.75,201.02,200.93,3.12100011]
[1756576820542,5.59051388,201.11,200.94,7.49]
[1756576820751,7.75,201.09,201.0,7.49]
[1756576821650,7.75,201.09,201.02,3.12100011]
[1756576821850,47.14100011,201.13,201.03,7.49]
[1756576822150,7.75,201.12,201.03,7.49]
[1756576823945,7.75,201.12,200.99,7.29757766]
[1756576824150,7.75,201.12,201.0,7.49]
[1756576825449,7.75,201.12,201.03,7.49]
[1756576826948,7.75,201.12,201.03,10.61100011]
[1756576827551,128.00100011,201.13,201.03,10.61100011]
[1756576828153,7.75,201.12,201.03,10.61100011]
[1756576828754,3.12100011,201.1,200.98,10.61100011]
[1756576829052,7.75,201.09,200.98,10.61100011]
[1756576832758,7.75,201.09,201.01,3.12100011]
[1756576833056,7.75,201.09,201.02,7.49]
[1756576834060,124.68,201.13,201.02,7.49]
[1756576834462,124.68,201.13,201.04,3.12100011]
[1756576834659,7.75,201.12,201.04,3.12100011]
[1756576835358,7.75,201.12,201.04,10.61100011]
[1756576840259,7.75,201.12,201.04,3.12100011]
[1756576840560,334.5,201.16,201.08,8.07]
[1756576840561,341.85,201.16,201.08,8.07]
[1756576840764,466.27,201.16,201.08,8.07]
[1756576841357,341.85,201.16,201.08,8.07]
[1756576842362,334.5,201.16,201.08,8.07]
[1756576843062,124.42,201.18,201.08,8.07]
[1756576843268,124.42,201.18,201.11,8.07]
[1756576844962,124.38,201.18,201.11,8.07]
[1756576845161,7.35,201.17,201.11,8.07]
[1756576859074,7.35,201.27,201.11,8.07]
[1756576859278,3.12100011,201.2,201.11,8.07]
[1756576859474,7.35,201.16,201.05,3.12100011]
[1756576859777,7.35,201.14,201.06,8.07]
[1756576860676,10.47100011,201.14,201.06,8.07]
[1756576861077,10.47100011,201.14,201.01,3.12100011]
[1756576861276,10.47100011,201.14,201.02,8.07]
[1756576864378,43.5,201.15,201.02,12.24657755]
[1756576864379,7.35,201.1,201.02,12.24657755]
[1756576864580,7.35,201.1,201.02,8.07]
[1756576866075,3.12100011,201.05,200.98,4.17657755]
[1756576866280,7.35,201.04,200.96,12.24657755]
[1756576866479,7.35,201.04,200.96,8.07]
[1756576867280,3.12100011,201.02,200.96,8.07]
[1756576867484,10.55100011,201.02,200.96,8.07]
[1756576869880,7.43,200.98,200.92,7.69]
[1756576870474,39.62,201.06,200.92,7.69]
[1756576870475,7.43,201.01,200.92,7.69]
[1756576870680,7.43,201.01,200.94,7.69]
[1756576870877,16.64100011,201.04,200.94,7.69]
[1756576871082,3.12100011,201.04,200.94,7.69]
[1756576871286,7.43,201.05,200.94,7.69]
[1756576871482,7.43,201.09,201.0,7.69]
[1756576871780,47.41100011,201.14,201.03,7.69]
[1756576872178,83.23100011,201.14,201.03,7.69]
[1756576872383,109.18100011,201.16,201.05,3.12100011]
[1756576872579,109.18100011,201.16,201.06,7.69]
[1756576874084,7.43,201.15,201.06,7.69]
[1756576877887,0.8654994,201.18,201.08,7.69]
[1756576878694,0.8654994,201.18,201.11,7.69]
[1756576882093,7.43,201.17,201.11,7.69]
[1756576882494,7.43,201.17,201.02,5.55728712]
[1756576882495,7.43,201.17,201.06,10.81100011]
[1756576883398,7.43,201.17,201.07,7.69]
[1756576886796,7.43,201.17,201.09,3.12100011]
[1756576887001,7.43,201.17,201.1,7.69]
[1756576887305,0.8654994,201.18,201.1,7.69]
[1756576889002,124.7254994,201.18,201.1,7.69]
[1756576891410,132.1554994,201.18,201.1,7.69]
[1756576896215,8.2954994,201.18,201.1,7.69]
[1756576898612,7.43,201.18,201.12,8.06]
[1756576899013,33.62,201.19,201.12,8.06]
[1756576900219,7.77,201.21,201.12,8.06]
[1756576901213,10.89100011,201.21,201.09,8.06]
[1756576902223,7.77,201.21,201.09,8.06]
[1756576902413,10.89100011,201.21,201.09,8.06]
[1756576906424,334.16,201.28,201.14,3.12100011]
[1756576906623,7.77,201.27,201.17,3.12100011]
[1756576906829,7.77,201.27,201.17,11.18100011]
[1756576911030,7.77,201.27,201.18,8.06]
[1756576911630,7.77,201.27,201.2,3.12100011]
[1756576919540,7.77,201.27,201.2,11.18100011]
[1756576919838,131.03,201.27,201.2,11.18100011]
[1756576920940,131.03,201.27,201.2,8.06]
[1756576921139,131.03,201.27,201.2,11.18100011]
[1756576922540,7.77,201.35,201.21,8.06]
[1756576922741,7.77,201.33,201.24,8.06]
[1756576922939,7.77,201.31,201.24,8.06]
[1756576923838,7.77,201.31,201.23,3.12100011]
[1756576924339,7.77,201.31,201.24,8.06]
[1756576928746,7.77,201.31,201.22,3.12100011]
[1756576929146,7.77,201.31,201.23,7.68]
[1756576932150,7.48,201.35,201.26,7.68]
[1756576932448,7.48,201.35,201.26,10.80100011]
[1756576932650,7.48,201.35,201.27,7.68]
[1756576933145,0.86459627,201.4,201.27,7.68]
[1756576933351,7.48,201.39,201.3,7.68]
[1756576940355,7.48,201.39,201.32,3.12100011]
[1756576940560,7.48,201.39,201.32,10.80100011]
[1756576943165,7.48,201.39,201.33,7.68]
[1756576944560,7.48,201.42,201.33,7.68]
[1756576945860,10.60100011,201.42,201.33,7.68]
[1756576946054,7.48,201.4,201.33,7.68]
[1756576950458,457.70444593,201.43,201.26,7.68]
[1756576950459,7.48,201.38,201.26,7.68]
[1756576950662,7.48,201.35,201.26,7.68]
[1756576953562,92.62,201.37,201.29,7.68]
[1756576953761,7.48,201.38,201.29,7.68]
[1756576954068,7.48,201.38,201.31,3.12100011]
[1756576954262,7.48,201.38,201.32,7.68]
[1756576960572,7.67,201.42,201.34,3.12100011]
[1756576961070,7.67,201.42,201.35,7.93]
[1756576973683,122.76,201.44,201.38,7.93]
[1756576974283,7.67,201.43,201.35,7.93]
[1756576979384,7.67,201.43,201.32,4.14670812]
[1756576979596,7.67,201.43,201.32,7.93]
[1756576979597,10.79100011,201.43,201.32,7.93]
[1756576981991,7.67,201.43,201.32,7.93]
[1756576982192,10.79100011,201.43,201.32,7.93]
[1756576982389,7.67,201.43,201.32,7.93]
[1756576982589,10.79100011,201.43,201.32,7.93]
[1756576984689,3.12100011,201.4,201.32,7.93]
[1756576984894,7.67,201.39,201.32,7.93]
[1756576985690,16.65,201.43,201.34,7.93]
[1756576985994,7.67,201.43,201.34,7.93]
[1756576987195,10.79100011,201.43,201.34,7.93]
[1756576987792,3.12100011,201.4,201.31,4.14670812]
[1756576987997,7.66,201.39,201.3,7.57]
[1756576989198,7.66,201.39,201.31,7.57]
[1756576989395,3.12100011,201.44,201.33,7.57]
[1756576989596,7.66,201.43,201.33,7.57]
[1756576990594,7.66,201.43,201.33,11.71670812]
[1756576990793,7.66,201.43,201.36,7.57]
[1756576993299,10.78100011,201.43,201.36,7.57]
[1756576993496,10.78100011,201.43,201.32,4.14670812]
[1756576993699,10.78100011,201.43,201.33,7.57]
[1756576996500,7.66,201.39,201.33,7.57]
[1756576998501,3.12100011,201.4,201.29,11.73462351]
[1756576998801,10.78100011,201.38,201.29,11.73462351]
[1756576999902,7.66,201.37,201.29,11.73462351]
[1756577002806,7.66,201.34,201.27,4.16462351]
[1756577004001,5.59051388,201.42,201.28,7.57]
[1756577004204,7.66,201.38,201.28,11.73462351]
[1756577004404,7.66,201.38,201.29,4.16462351]
[1756577004603,7.66,201.38,201.3,7.57]
[1756577009710,7.66,201.41,201.34,7.57]
[1756577010700,10.78100011,201.45,201.34,7.57]
[1756577011410,7.66,201.44,201.34,10.69100011]
[1756577012309,7.66,201.44,201.35,7.57]
[1756577020217,3.12100011,201.42,201.32,4.16462351]
[1756577020416,7.49,201.41,201.32,11.76462351]
[1756577020619,3.12100011,201.42,201.32,11.76462351]
[1756577020820,7.49,201.41,201.32,7.6]
[1756577025119,3.12100011,201.39,201.32,7.6]
[1756577025422,7.49,201.38,201.32,7.6]
[1756577039221,7.49,201.42,201.32,7.6]
[1756577043125,3.12100011,201.4,201.3,4.16462351]
[1756577043425,7.49,201.33,201.26,4.16462351]
[1756577043727,7.49,201.33,201.25,7.6]
[1756577044921,3.12100011,201.31,201.25,7.6]
[1756577045126,10.61100011,201.31,201.25,7.6]
[1756577046927,7.49,201.31,201.25,7.6]
[1756577049026,10.61100011,201.31,201.25,7.6]
[1756577061433,7.49,201.31,201.25,7.6]
[1756577061634,10.61100011,201.31,201.25,7.6]
[1756577070943,7.65,201.38,201.29,7.94]
[1756577071947,341.43,201.41,201.29,7.94]
[1756577073248,341.43,201.41,201.32,7.94]
[1756577076151,344.55100011,201.41,201.32,7.94]
[1756577076350,344.55100011,201.41,201.29,7.94]
[1756577080752,7.88,201.39,201.29,7.94]
[1756577083452,7.88,201.39,201.31,3.12100011]
[1756577083652,7.88,201.39,201.32,7.34]
[1756577087748,122.32,201.38,201.32,7.34]
[1756577091952,7.88,201.37,201.31,10.46100011]
[1756577093654,7.88,201.37,201.31,7.34]
[1756577096451,7.88,201.37,201.28,7.34]
[1756577096658,7.88,201.37,201.28,10.46100011]
[1756577097055,122.32,201.38,201.28,10.46100011]
[1756577097351,7.88,201.37,201.28,7.34]
[1756577097557,7.88,201.37,201.28,10.46100011]
[1756577097759,122.32,201.38,201.28,10.46100011]
[1756577098655,7.88,201.37,201.28,10.46100011]
[1756577101761,7.88,201.37,201.32,7.34]
[1756577102253,7.88,201.37,201.31,3.12100011]
[1756577102660,7.88,201.38,201.31,10.46100011]
[1756577104463,7.88,201.38,201.32,7.34]
[1756577106566,7.88,201.38,201.29,7.34]
[1756577107765,7.88,201.38,201.3,7.7]
[1756577107966,7.88,201.38,201.32,3.12100011]
[1756577108359,27.66,201.42,201.32,10.82100011]
[1756577108754,47.2,201.41,201.32,10.82100011]
[1756577108959,7.31,201.4,201.32,10.82100011]
[1756577110468,3.12100011,201.45,201.33,7.7]
[1756577110763,7.31,201.44,201.36,7.7]
[1756577119267,7.31,201.47,201.38,7.7]
[1756577120774,7.31,201.5,201.41,7.7]
[1756577121168,7.31,201.5,201.42,7.7]
[1756577121469,7.31,201.5,201.43,7.7]
[1756577129474,29.84495244,201.55,201.46,7.7]
[1756577129475,0.86395233,201.55,201.46,7.7]
[1756577129672,7.31,201.57,201.49,7.7]
[1756577132273,3.12100011,201.59,201.46,10.82100011]
[1756577132774,7.31,201.58,201.46,10.82100011]
[1756577132980,3.12100011,201.59,201.46,10.82100011]
[1756577133568,7.31,201.58,201.46,10.82100011]
[1756577134076,3.12100011,201.59,201.46,10.82100011]
[1756577134478,7.31,201.58,201.46,10.82100011]
[1756577134976,3.12100011,201.59,201.46,10.82100011]
[1756577135173,7.31,201.55,201.46,7.7]
[1756577139071,7.31,201.55,201.47,7.37]
[1756577139480,7.37,201.59,201.47,7.37]
[1756577141377,0.86382366,201.6,201.47,7.37]
[1756577141573,0.86382366,201.6,201.46,30.38100011]
[1756577141574,7.37,201.63,201.53,7.37]
[1756577141778,3.12100011,201.65,201.53,7.37]
[1756577143482,3.12100011,201.65,201.54,7.37]
[1756577145883,7.37,201.64,201.54,7.37]
[1756577146279,3.12100011,201.62,201.54,7.37]
[1756577146486,7.37,201.61,201.54,7.37]
[1756577146683,7.37,201.61,201.49,7.37]
[1756577147782,7.37,201.59,201.49,7.37]
[1756577152389,7.37,201.62,201.51,3.12100011]
[1756577152693,7.37,201.62,201.52,7.37]
[1756577155392,7.37,201.6,201.52,7.37]
[1756577155591,7.37,201.6,201.48,7.37]
[1756577155797,3.12100011,201.61,201.48,10.49100011]
[1756577155993,7.37,201.6,201.48,10.49100011]
[1756577157193,7.37,201.58,201.48,10.49100011]
[1756577159400,3.12100011,201.59,201.48,10.49100011]
[1756577159700,3.12100011,201.56,201.48,7.37]
[1756577159899,7.37,201.55,201.48,7.37]
[1756577162706,10.49100011,201.59,201.48,7.37]
[1756577162903,7.37,201.59,201.51,7.37]
[1756577163300,76.25100011,201.62,201.51,7.37]
[1756577164201,7.37,201.58,201.51,7.37]
[1756577166803,7.37,201.58,201.47,4.130195]
[1756577166804,3.12100011,201.62,201.53,7.37]
[1756577167008,7.37,201.64,201.53,7.37]
[1756577168206,7.36,201.61,201.53,7.37]
[1756577173618,3.12100011,201.63,201.53,7.37]
[1756577173619,7.36,201.66,201.53,10.49100011]
[1756577173813,0.86353429,201.67,201.53,10.49100011]
[1756577173814,7.36,201.62,201.53,7.96]
[1756577183025,7.36,201.59,201.51,4.14032198]
[1756577183320,7.36,201.53,201.46,7.96]
[1756577184715,5.59051388,201.61,201.46,7.96]
[1756577184919,7.36,201.57,201.49,7.96]
[1756577185313,7.36,201.61,201.52,7.96]
[1756577185514,7.36,201.61,201.53,7.96]
[1756577186719,343.90100011,201.64,201.55,7.96]
[1756577186921,10.48100011,201.64,201.55,7.96]
[1756577189618,7.36,201.64,201.55,7.96]
[1756577189926,7.36,201.64,201.56,12.10032198]
[1756577190125,7.36,201.64,201.57,7.96]
[1756577205233,3.12100011,201.63,201.57,7.96]
[1756577205434,7.41,201.62,201.57,7.96]
[1756577205636,3.12100011,201.63,201.57,7.96]
[1756577206237,10.53100011,201.63,201.57,7.96]
[1756577206633,7.41,201.63,201.57,7.96]
[1756577206939,7.41,201.63,201.54,7.9]
[1756577208228,3.12100011,201.59,201.52,4.14032198]
[1756577208433,7.41,201.58,201.5,7.9]
[1756577209130,3.12100011,201.56,201.5,7.9]
[1756577209336,10.53100011,201.56,201.5,7.9]
[1756577210235,7.41,201.52,201.47,7.9]
[1756577210941,7.41,201.52,201.43,7.9]
[1756577213331,7.41,201.48,201.43,7.9]
[1756577213531,7.41,201.48,201.39,7.9]
[1756577214136,7.41,201.48,201.4,7.9]
[1756577214637,10.53100011,201.54,201.43,7.9]
[1756577215037,7.41,201.54,201.45,3.12100011]
[1756577215242,7.41,201.54,201.46,7.9]
[1756577222437,3.12100011,201.58,201.46,3.12100011]
[1756577222644,10.53100011,201.58,201.49,3.12100011]
[1756577222844,10.53100011,201.58,201.5,7.9]
[1756577223045,7.41,201.58,201.5,7.9]
[1756577231553,336.54100011,201.6,201.45,4.14032198]
[1756577231554,7.97,201.56,201.46,7.84]
[1756577234659,7.97,201.56,201.49,7.84]
[1756577241567,7.97,201.59,201.49,7.84]
[1756577241859,7.97,201.59,201.52,7.84]
[1756577245767,3.12100011,201.6,201.49,7.84]
[1756577245961,7.97,201.59,201.49,7.84]
[1756577254578,3.12100011,201.57,201.48,4.14032198]
[1756577254782,7.97,201.53,201.45,11.98032198]
[1756577256279,7.97,201.53,201.46,7.84]
[1756577256477,3.12100011,201.58,201.47,7.84]
[1756577256678,7.97,201.57,201.48,7.84]
[1756577256878,7.97,201.57,201.49,7.84]
[1756577259485,3.12100011,201.55,201.49,7.84]
[1756577259782,7.77,201.54,201.47,4.14032198]
[1756577261087,3.12100011,201.52,201.47,4.14032198]
[1756577261283,3.12100011,201.52,201.46,7.39]
[1756577261488,7.77,201.57,201.46,7.39]
[1756577261783,7.77,201.5,201.46,7.39]
[1756577261986,3.12100011,201.51,201.46,7.39]
[1756577262178,7.77,201.5,201.46,7.39]
[1756577262885,3.12100011,201.51,201.44,4.14032198]
[1756577263091,7.77,201.5,201.44,4.14032198]
[1756577264494,7.77,201.5,201.43,11.53032198]
[1756577265993,3.12100011,201.51,201.44,11.53032198]
[1756577266190,3.12100011,201.51,201.45,7.39]
[1756577266692,10.89100011,201.51,201.45,7.39]
[1756577267485,7.77,201.5,201.42,11.53032198]
[1756577268694,7.77,201.5,201.42,7.39]
[1756577268695,3.12100011,201.48,201.42,7.39]